fUSD/lending_fUSD_20250305
["ID","MTS","AMOUNT","RATE_DAILY","PERIOD"]
[355434412,1741149043453,-686.93,0.00011949,2]
[355434413,1741149043462,-500.0,0.00011949,2]
[355434414,1741149043471,-1005.93,0.00011949,2]
[355434415,1741149043481,-500.0,0.00011949,2]
[355434416,1741149043490,-500.0,0.00011949,2]
[355434417,1741149043499,-500.0,0.00011949,2]
[355434418,1741149043509,-500.0,0.00011949,2]
[355434419,1741149043518,-500.0,0.00011949,2]
[355434420,1741149043528,-500.0,0.00011949,2]
[355434421,1741149043537,-500.0,0.00011949,2]
[355434422,1741149043547,-548.18,0.00011949,2]
[355434423,1741149043556,-500.0,0.00011949,2]
[355434424,1741149043566,-500.0,0.00011949,2]
[355434425,1741149043576,-513.96333216,0.00011949,2]
[355434426,1741149043586,-500.0,0.00011949,2]
[355434427,1741149043595,-988.34,0.00011949,2]
[355434428,1741149043605,-500.0,0.00011949,2]
[355434429,1741149043615,-500.0,0.00011949,2]
[355434430,1741149043624,-500.0,0.00011949,2]
[355434431,1741149043634,-500.0,0.00011949,2]
[355434432,1741149043643,-500.0,0.00011949,2]
[355434433,1741149043653,-1334.12,0.00011949,2]
[355434434,1741149043662,-500.0,0.00011949,2]
[355434435,1741149043673,-504.30791584,0.00011949,2]
[355434436,1741149043683,-500.0,0.00011949,2]
[355434437,1741149043692,-500.0,0.00011949,2]
[355434438,1741149043702,-500.0,0.00011949,2]
[355434439,1741149043712,-500.0,0.00011949,2]
[355434440,1741149043721,-500.0,0.00011949,2]
[355434441,1741149043730,-500.0,0.00011949,2]
[355434442,1741149043740,-500.0,0.00011949,2]
[355434443,1741149043752,-849.06,0.00011949,2]
[355434444,1741149043762,-500.0,0.00011949,2]
[355434445,1741149043771,-500.0,0.00011949,2]
[355434446,1741149043781,-500.0,0.00011949,2]
[355434447,1741149043790,-1870.83,0.00011949,2]
[355434448,1741149043799,-500.0,0.00011949,2]
[355434449,1741149043809,-1263.77,0.00011949,2]
[355434450,1741149043818,-500.0,0.00011949,2]
[355434451,1741149043827,-500.0,0.00011949,2]
[355434452,1741149043836,-500.0,0.00011949,2]
[355434453,1741149043845,-500.0,0.00011949,2]
[355434454,1741149043855,-500.0,0.00011949,2]
[355434455,1741149043864,-1898.31,0.00011949,2]
[355434456,1741149043873,-500.0,0.00011949,2]
[355434457,1741149043883,-1107.44,0.00011949,2]
[355434458,1741149043892,-509.45657005,0.00011949,2]
[355434459,1741149043901,-514.43396666,0.00011949,2]
[355434460,1741149043911,-500.0,0.00011949,2]
[355434461,1741149043919,-500.0,0.00011949,2]
[355434462,1741149043929,-1090.82,0.00011949,2]
[355434463,1741149043938,-500.0,0.00011949,2]
[355434464,1741149043947,-500.0,0.00011949,2]
[355434465,1741149043956,-431.62395098,0.00011949,2]
[355434466,1741149043966,-500.0,0.00011949,2]
[355434467,1741149043975,-1101.63,0.00011949,2]
[355434468,1741149043985,-517.95249043,0.00011949,2]
[355434469,1741149043994,-500.0,0.00011949,2]
[355434470,1741149044005,-500.0,0.00011949,2]
[355434471,1741149044014,-1013.55,0.00011949,2]
[355434472,1741149044024,-500.0,0.00011949,2]
[355434473,1741149044033,-500.0,0.00011949,2]
[355434474,1741149044043,-498.57056652,0.00011949,2]
[355434475,1741149044052,-506.44744121,0.00011949,2]
[355434476,1741149044061,-500.0,0.00011949,2]
[355434477,1741149044070,-507.23115829,0.00011949,2]
[355434478,1741149044079,-888.07,0.00011949,2]
[355434479,1741149044089,-500.0,0.00011949,2]
[355434480,1741149044098,-500.0,0.00011949,2]
[355434481,1741149044110,-1061.35,0.00011949,2]
[355434482,1741149044121,-1136.4,0.00011949,2]
[355434483,1741149044130,-983.23,0.00011949,2]
[355434484,1741149044140,-500.0,0.00011949,2]
[355434485,1741149044149,-500.0,0.00011949,2]
[355434486,1741149044159,-523.18076555,0.00011949,2]
[355434487,1741149044170,-500.0,0.00011949,2]
[355434488,1741149044180,-320.52724045,0.00011949,2]
[355434489,1741149044190,-500.0,0.00011949,2]
[355434490,1741149044200,-1759.95,0.00011949,2]
[355434491,1741149044209,-500.0,0.00011949,2]
[355434492,1741149044218,-358.56328126,0.00011949,2]
[355434493,1741149044227,-500.0,0.00011949,2]
[355434494,1741149044238,-500.0,0.00011949,2]
[355434495,1741149044247,-500.0,0.00011949,2]
[355434496,1741149044256,-500.0,0.00011949,2]
[355434497,1741149044265,-500.0,0.00011949,2]
[355434498,1741149044275,-500.0,0.00011949,2]
[355434499,1741149044284,-500.0,0.00011949,2]
[355434500,1741149044293,-500.0,0.00011949,2]
[355434501,1741149044303,-1504.29,0.00011949,2]
[355434502,1741149044312,-884.96,0.00011949,2]
[355434503,1741149044322,-529.71347297,0.00011949,2]
[355434504,1741149044333,-500.0,0.00011949,2]
[355434505,1741149044345,-500.0,0.00011949,2]
[355434506,1741149044355,-500.0,0.00011949,2]
[355434507,1741149044365,-1010.51,0.00011949,2]
[355434508,1741149044376,-572.35,0.00011949,2]
[355434509,1741149044385,-500.0,0.00011949,2]
[355434510,1741149044395,-500.0,0.00011949,2]
[355434511,1741149044404,-500.0,0.00011949,2]
[355434512,1741149044415,-595.33,0.00011949,2]
[355434513,1741149044426,-500.0,0.00011949,2]
[355434514,1741149044435,-1391.56,0.00011949,2]
[355434515,1741149044444,-500.0,0.00011949,2]
[355434516,1741149044453,-500.0,0.00011949,2]
[355434517,1741149044463,-500.0,0.00011949,2]
[355434518,1741149044472,-506.94238568,0.00011949,2]
[355434519,1741149044482,-500.0,0.00011949,2]
[355434520,1741149044492,-1235.28,0.00011949,2]
[355434521,1741149044502,-500.0,0.00011949,2]
[355434522,1741149044512,-1082.99,0.00011949,2]
[355434523,1741149044521,-1922.09,0.00011949,2]
[355434524,1741149044530,-500.0,0.00011949,2]
[355434525,1741149044539,-500.0,0.00011949,2]
[355434526,1741149044549,-500.0,0.00011949,2]
[355434527,1741149044558,-500.0,0.00011949,2]
[355434528,1741149044567,-500.0,0.00011949,2]
[355434529,1741149044577,-500.0,0.00011949,2]
[355434530,1741149044586,-1002.46,0.00011949,2]
[355434531,1741149044595,-1131.54,0.00011949,2]
[355434532,1741149044604,-500.0,0.00011949,2]
[355434533,1741149044613,-1172.68,0.00011949,2]
[355434534,1741149044623,-500.0,0.00011949,2]
[355434535,1741149044632,-500.0,0.00011949,2]
[355434536,1741149044642,-500.0,0.00011949,2]
[355434537,1741149044652,-1075.9,0.00011949,2]
[355434538,1741149044661,-500.0,0.00011949,2]
[355434539,1741149044671,-500.0,0.00011949,2]
[355434540,1741149044680,-500.0,0.00011949,2]
[355434541,1741149044690,-191.64017649,0.00011949,2]
[355434542,1741149044699,-875.03,0.00011949,2]
[355434543,1741149044709,-500.0,0.00011949,2]
[355434544,1741149044718,-500.0,0.00011949,2]
[355434545,1741149044728,-2240.17,0.00011949,2]
[355434546,1741149044737,-1345.39,0.00011949,2]
[355434547,1741149044748,-500.0,0.00011949,2]
[355434548,1741149044757,-376.65061262,0.00011949,2]
[355434549,1741149044767,-1055.38,0.00011949,2]
[355434550,1741149044776,-500.0,0.00011949,2]
[355434551,1741149044786,-500.0,0.00011949,2]
[355434552,1741149044796,-500.0,0.00011949,2]
[355434553,1741149044806,-500.0,0.00011949,2]
[355434554,1741149044816,-930.63,0.00011949,2]
[355434555,1741149044826,-500.0,0.00011949,2]
[355434556,1741149044835,-500.0,0.00011949,2]
[355434557,1741149044845,-500.0,0.00011949,2]
[355434558,1741149044854,-500.0,0.00011949,2]
[355434559,1741149044864,-500.0,0.00011949,2]
[355434560,1741149044873,-803.24,0.00011949,2]
[355434561,1741149044882,-500.0,0.00011949,2]
[355434562,1741149044892,-1164.83,0.00011949,2]
[355434563,1741149044901,-500.0,0.00011949,2]
[355434564,1741149044911,-801.72,0.00011949,2]
[355434565,1741149044920,-500.0,0.00011949,2]
[355434566,1741149044930,-1982.08,0.00011949,2]
[355434567,1741149044939,-822.78,0.00011949,2]
[355434568,1741149044948,-500.0,0.00011949,2]
[355434569,1741149044958,-500.0,0.00011949,2]
[355434570,1741149044969,-517.84477947,0.00011949,2]
[355434571,1741149044978,-507.65645341,0.00011949,2]
[355434572,1741149044988,-500.0,0.00011949,2]
[355434573,1741149044998,-534.8271644,0.00011949,2]
[355434574,1741149045008,-500.0,0.00011949,2]
[355434575,1741149045018,-500.0,0.00011949,2]
[355434576,1741149045028,-500.0,0.00011949,2]
[355434577,1741149045039,-2503.63,0.00011949,2]
[355434578,1741149045051,-509.28943386,0.00011949,2]
[355434579,1741149045060,-1211.94,0.00011949,2]
[355434580,1741149045070,-1076.18,0.00011949,2]
[355434581,1741149045079,-1634.59,0.00011949,2]
[355434582,1741149045089,-500.0,0.00011949,2]
[355434583,1741149045098,-1039.1,0.00011949,2]
[355434584,1741149045107,-500.0,0.00011949,2]
[355434585,1741149045117,-500.0,0.00011949,2]
[355434586,1741149045126,-791.74,0.00011949,2]
[355434587,1741149045135,-500.0,0.00011949,2]
[355434588,1741149045144,-3125.1,0.00011949,2]
[355434589,1741149045154,-500.0,0.00011949,2]
[355434590,1741149045163,-1048.72,0.00011949,2]
[355434591,1741149045172,-500.0,0.00011949,2]
[355434592,1741149045182,-500.0,0.00011949,2]
[355434593,1741149045191,-500.0,0.00011949,2]
[355434594,1741149045201,-1853.35,0.00011949,2]
[355434595,1741149045210,-1537.22,0.00011949,2]
[355434596,1741149045220,-512.83560706,0.00011949,2]
[355434597,1741149045229,-500.0,0.00011949,2]
[355434598,1741149045239,-151.0,0.00011949,2]
[355434599,1741149045252,-151.0,0.00011949,2]
[355434600,1741149045263,-1322.26,0.00011949,2]
[355434601,1741149045272,-1114.23,0.00011949,2]
[355434602,1741149045282,-500.0,0.00011949,2]
[355434603,1741149045291,-500.0,0.00011949,2]
[355434604,1741149045301,-516.10080812,0.00011949,2]
[355434605,1741149045311,-989.87,0.00011949,2]
[355434606,1741149045320,-500.0,0.00011949,2]
[355434607,1741149045331,-500.0,0.00011949,2]
[355434608,1741149045342,-500.0,0.00011949,2]
[355434609,1741149045352,-500.0,0.00011949,2]
[355434610,1741149045362,-386.09557231,0.00011949,2]
[355434611,1741149045372,-1452.48,0.00011949,2]
[355434612,1741149045383,-500.0,0.00011949,2]
[355434613,1741149045393,-500.0,0.00011949,2]
[355434614,1741149045402,-500.0,0.00011949,2]
[355434615,1741149045413,-11949.55,0.00011949,2]
[355434616,1741149045423,-500.0,0.00011949,2]
[355434617,1741149045432,-500.0,0.00011949,2]
[355434618,1741149045442,-743.44,0.00011949,2]
[355434619,1741149045452,-500.0,0.00011949,2]
[355434620,1741149045461,-500.0,0.00011949,2]
[355434621,1741149045470,-1886.1,0.00011949,2]
[355434622,1741149045479,-500.0,0.00011949,2]
[355434623,1741149045490,-500.0,0.00011949,2]
[355434624,1741149045500,-1164.0,0.00011949,2]
[355434625,1741149045508,-503.00515897,0.00011949,2]
[355434626,1741149045518,-1448.4,0.00011949,2]
[355434627,1741149045527,-2499.94,0.00011949,2]
[355434628,1741149045536,-1549.89,0.00011949,2]
[355434629,1741149045545,-894.7,0.00011949,2]
[355434630,1741149045554,-500.0,0.00011949,2]
[355434631,1741149045563,-500.0,0.00011949,2]
[355434632,1741149045572,-500.0,0.00011949,2]
[355434633,1741149045582,-944.22,0.00011949,2]
[355434634,1741149045591,-500.0,0.00011949,2]
[355434635,1741149045600,-485.25958072,0.00011949,2]
[355434636,1741149045610,-500.0,0.00011949,2]
[355434637,1741149045619,-897.64,0.00011949,2]
[355434638,1741149045628,-500.0,0.00011949,2]
[355434639,1741149045638,-870.99,0.00011949,2]
[355434640,1741149045648,-2135.65,0.00011949,2]
[355434641,1741149045657,-910.75,0.00011949,2]
[355434642,1741149045668,-2705.42,0.00011949,2]
[355434643,1741149045677,-1026.82,0.00011949,2]
[355434644,1741149045686,-679.85,0.00011949,2]
[355434645,1741149045695,-762.26,0.00011949,2]
[355434646,1741149045705,-4641.18,0.00011949,2]
[355434647,1741149045714,-2911.67,0.00011949,2]
[355434648,1741149045723,-500.0,0.00011949,2]
[355434649,1741149045732,-500.0,0.00011949,2]
[355434650,1741149045741,-500.0,0.00011949,2]
[355434651,1741149045752,-3201.41,0.00011949,2]
[355434652,1741149045761,-500.0,0.00011949,2]
[355434653,1741149045771,-1072.81,0.00011949,2]
[355434654,1741149045780,-4184.96,0.00011949,2]
[355434655,1741149045791,-836.21,0.00011949,2]
[355434656,1741149045805,-500.0,0.00011949,2]
[355434657,1741149045814,-2891.94,0.00011949,2]
[355434658,1741149045823,-500.0,0.00011949,2]
[355434659,1741149045832,-500.0,0.00011949,2]
[355434660,1741149045842,-500.0,0.00011949,2]
[355434661,1741149045851,-1611.2,0.00011949,2]
[355434662,1741149045860,-500.0,0.00011949,2]
[355434663,1741149045869,-1979.12,0.00011949,2]
[355434664,1741149045879,-513.23207676,0.00011949,2]
[355434665,1741149045889,-553.68,0.00011949,2]
[355434666,1741149045899,-500.0,0.00011949,2]
[355434667,1741149045908,-2520.58,0.00011949,2]
[355434668,1741149045917,-500.0,0.00011949,2]
[355434669,1741149045926,-500.0,0.00011949,2]
[355434670,1741149045938,-1485.7,0.00011949,2]
[355434671,1741149045957,-500.0,0.00011949,2]
[355434672,1741149045969,-500.0,0.00011949,2]
[355434673,1741149045980,-500.0,0.00011949,2]
[355434674,1741149046001,-500.0,0.00011949,2]
[355434675,1741149046012,-512.03351382,0.00011949,2]
[355434676,1741149046022,-2220.43,0.00011949,2]
[355434677,1741149046031,-508.4050905,0.00011949,2]
[355434678,1741149046040,-3436.37,0.00011949,2]
[355434679,1741149046050,-500.0,0.00011949,2]
[355434680,1741149046061,-3902.9,0.00011949,2]
[355434681,1741149046070,-863.48,0.00011949,2]
[355434682,1741149046079,-500.0,0.00011949,2]
[355434683,1741149046088,-502.75612292,0.00011949,2]
[355434684,1741149046098,-1381.1,0.00011949,2]
[355434685,1741149046107,-9008.66,0.00011949,2]
[355434686,1741149046117,-524.19904046,0.00011949,2]
[355434687,1741149046126,-500.0,0.00011949,2]
[355434688,1741149046135,-504.02981881,0.00011949,2]
[355434689,1741149046144,-1298.47,0.00011949,2]
[355434690,1741149046153,-1372.44,0.00011949,2]
[355434691,1741149046163,-501.78713993,0.00011949,2]
[355434692,1741149046172,-500.0,0.00011949,2]
[355434694,1741149046182,-514.18380117,0.00011949,2]
[355434696,1741149046191,-500.0,0.00011949,2]
[355434697,1741149046200,-515.54162676,0.00011949,2]
[355434698,1741149046210,-316.59362597,0.00011949,2]
[355434699,1741149046219,-500.0,0.00011949,2]
[355434700,1741149046229,-500.0,0.00011949,2]
[355434702,1741149046239,-500.0,0.00011949,2]
[355434703,1741149046250,-3555.92,0.00011949,2]
[355434704,1741149046260,-500.0,0.00011949,2]
[355434705,1741149046269,-502.92896497,0.00011949,2]
[355434706,1741149046279,-500.92125834,0.00011949,2]
[355434707,1741149046288,-1063.37,0.00011949,2]
[355434708,1741149046297,-501.90460294,0.00011949,2]
[355434709,1741149046307,-500.0,0.00011949,2]
[355434710,1741149046316,-500.0,0.00011949,2]
[355434711,1741149046325,-2199.66,0.00011949,2]
[355434712,1741149046337,-500.0,0.00011949,2]
[355434713,1741149046350,-4053.02,0.00011949,2]
[355434714,1741149046360,-857.82,0.00011949,2]
[355434715,1741149046369,-1364.58,0.00011949,2]
[355434716,1741149046378,-500.0,0.00011949,2]
[355434717,1741149046389,-11843.57,0.00011949,2]
[355434718,1741149046398,-4269.78,0.00011949,2]
[355434719,1741149046408,-500.0,0.00011949,2]
[355434720,1741149046418,-9534.95,0.00011949,2]
[355434721,1741149046427,-500.0,0.00011949,2]
[355434722,1741149046437,-500.0,0.00011949,2]
[355434723,1741149046446,-500.0,0.00011949,2]
[355434724,1741149046455,-500.0,0.00011949,2]
[355434725,1741149046464,-500.0,0.00011949,2]
[355434726,1741149046473,-500.0,0.00011949,2]
[355434727,1741149046482,-500.0,0.00011949,2]
[355434728,1741149046491,-5853.3,0.00011949,2]
[355434729,1741149046501,-1978.37,0.00011949,2]
[355434730,1741149046510,-905.18,0.00011949,2]
[355434731,1741149046519,-627.45123405,0.00011949,2]
[355434732,1741149046528,-500.0,0.00011949,2]
[355434733,1741149046537,-3853.95,0.00011949,2]
[355434734,1741149046546,-501.11538575,0.00011949,2]
[355434735,1741149046555,-12580.16,0.00011949,2]
[355434736,1741149046564,-502.32931573,0.00011949,2]
[355434737,1741149046574,-943.82,0.00011949,2]
[355434738,1741149046583,-5517.56,0.00011949,2]
[355434739,1741149046593,-500.0,0.00011949,2]
[355434740,1741149046602,-1262.52,0.00011949,2]
[355434741,1741149046611,-500.0,0.00011949,2]
[355434742,1741149046620,-500.0,0.00011949,2]
[355434743,1741149046629,-500.0,0.00011949,2]
[355434744,1741149046639,-1973.89,0.00011949,2]
[355434745,1741149046648,-501.6536026,0.00011949,2]
[355434746,1741149046657,-500.0,0.00011949,2]
[355434747,1741149046667,-500.0,0.00011949,2]
[355434748,1741149046676,-500.0,0.00011949,2]
[355434749,1741149046685,-42567.12,0.00011949,2]
[355434750,1741149046694,-6457.78,0.00011949,2]
[355434751,1741149046703,-500.0,0.00011949,2]
[355434752,1741149046712,-502.29771815,0.00011949,2]
[355434753,1741149046722,-900.34,0.00011949,2]
[355434754,1741149046731,-500.0,0.00011949,2]
[355434755,1741149046740,-500.0,0.00011949,2]
[355434756,1741149046750,-500.0,0.00011949,2]
[355434757,1741149046759,-501.08959979,0.00011949,2]
[355434758,1741149046768,-500.0,0.00011949,2]
[355434759,1741149046779,-624.66927698,0.00011949,2]
[355434760,1741149046788,-500.0,0.00011949,2]
[355434761,1741149046798,-500.0,0.00011949,2]
[355434762,1741149046807,-934.96,0.00011949,2]
[355434763,1741149046817,-500.0,0.00011949,2]
[355434764,1741149046826,-500.0,0.00011949,2]
[355434765,1741149046835,-500.0,0.00011949,2]
[355434766,1741149046845,-953.62,0.00011949,2]
[355434767,1741149047074,-3951.64,0.00011949,2]
[355434768,1741149047085,-500.0,0.00011949,2]
[355434769,1741149047094,-1446.47,0.00011949,2]
[355434770,1741149047104,-500.0,0.00011949,2]
[355434771,1741149047113,-502.35,0.00011949,2]
[355434772,1741149047123,-500.0,0.00011949,2]
[355434773,1741149047132,-3950.54,0.00011949,2]
[355434774,1741149047142,-500.0,0.00011949,2]
[355434775,1741149047151,-2500.12,0.00011949,2]
[355434776,1741149047160,-623.016783,0.00011949,2]
[355434777,1741149047170,-442.07416388,0.00011949,2]
[355434778,1741149047179,-2391.56,0.00011949,2]
[355434779,1741149047189,-1783.19,0.00011949,2]
[355434780,1741149047198,-500.0,0.00011949,2]
[355434781,1741149047208,-500.0,0.00011949,2]
[355434782,1741149047218,-905.8,0.00011949,2]
[355434783,1741149047227,-500.0,0.00011949,2]
[355434784,1741149047236,-500.0,0.00011949,2]
[355434785,1741149047248,-500.0,0.00011949,2]
[355434786,1741149047257,-9425.26,0.00011949,2]
[355434787,1741149047267,-1499.46,0.00011949,2]
[355434788,1741149047276,-769.46,0.00011949,2]
[355434789,1741149047285,-500.0,0.00011949,2]
[355434790,1741149047295,-500.0,0.00011949,2]
[355434791,1741149047304,-6762.81,0.00011949,2]
[355434792,1741149047313,-500.0,0.00011949,2]
[355434793,1741149047323,-500.0,0.00011949,2]
[355434794,1741149047332,-500.0,0.00011949,2]
[355434795,1741149047346,-500.0,0.00011949,2]
[355434796,1741149047355,-44711.45,0.00011949,2]
[355434797,1741149047365,-500.0,0.00011949,2]
[355434798,1741149047375,-6154.14,0.00011949,2]
[355434799,1741149047385,-500.0,0.00011949,2]
[355434800,1741149047395,-936.25,0.00011949,2]
[355434801,1741149047404,-1244.9,0.00011949,2]
[355434802,1741149047416,-500.0,0.00011949,2]
[355434803,1741149047425,-1523.74,0.00011949,2]
[355434804,1741149047435,-7544.57,0.00011949,2]
[355434805,1741149047444,-500.0,0.00011949,2]
[355434806,1741149047453,-500.0,0.00011949,2]
[355434807,1741149047462,-500.0,0.00011949,2]
[355434808,1741149047471,-577.18620791,0.00011949,2]
[355434809,1741149047481,-500.0,0.00011949,2]
[355434810,1741149047490,-500.0,0.00011949,2]
[355434811,1741149047500,-500.0,0.00011949,2]
[355434812,1741149047510,-500.0,0.00011949,2]
[355434813,1741149047519,-500.0,0.00011949,2]
[355434814,1741149047528,-151.0,0.0001195,2]
[355434815,1741149047537,-317.8342353,0.00011957,2]
[355434816,1741149047546,-10836.11373056,0.00011958,2]
[355434817,1741149047555,-3148.4179,0.00011958,2]
[355434818,1741149047565,-508.20868962,0.00011973,2]
[355434819,1741149047574,-504.03134927,0.00011973,2]
[355434820,1741149047583,-299.59,0.00011975,2]
[355434821,1741149047593,-7930.09693558,0.00011976,2]
[355434822,1741149047602,-7326.41845005,0.00011977,2]
[355434823,1741149047611,-150.0,0.00012,2]
[355434824,1741149047620,-150.0,0.00012009,2]
[355434825,1741149047630,-150.0,0.0001201,2]
[355434826,1741149047639,-150.0,0.00012013,2]
[355434827,1741149047649,-366.4170613,0.00012013,2]
[355434828,1741149047659,-150.0,0.00012018,2]
[355434829,1741149047668,-7930.09693558,0.00012018,2]
[355434830,1741149047678,-7326.41845005,0.00012019,2]
[355434831,1741149047687,-150.0,0.00012022,2]
[355434832,1741149047697,-1213.0,0.00012024,2]
[355434833,1741149047706,-150.0,0.00012028,2]
[355434834,1741149047716,-4928.1359875,0.00012031,2]
[355434835,1741149047725,-1585.1085542,0.00012031,2]
[355434836,1741149047734,-3555.2363929,0.00012031,2]
[355434837,1741149047743,-8142.0975122,0.00012031,2]
[355434838,1741149047754,-9085.6947088,0.00012031,2]
[355434839,1741149047763,-200.0,0.00012032,2]
[355434840,1741149047773,-150.0,0.00012039,2]
[355434841,1741149047782,-150.0,0.00012049,2]
[355434842,1741149047791,-5094.0,0.00012055,2]
[355434843,1741149047801,-31090.80907976,0.00012055,2]
[355434844,1741149047810,-151.0,0.00012055,2]
[355434845,1741149047819,-154.978436,0.00012055,2]
[355434846,1741149047829,-155.583205,0.00012055,2]
[355434847,1741149047838,-500.0,0.00012056,2]
[355434848,1741149047847,-500.0,0.00012056,2]
[355434849,1741149047857,-226.84452618,0.00012056,2]
[355434850,1741149047866,-220.961458,0.00012057,2]
[355434851,1741149047876,-500.0,0.00012057,2]
[355434852,1741149047885,-500.0,0.00012057,2]
[355434853,1741149047895,-1677.18,0.00012057,2]
[355434854,1741149047905,-151.0,0.00012057,2]
[355434855,1741149047915,-151.0,0.00012057,2]
[355434856,1741149047924,-151.0,0.00012057,2]
[355434857,1741149047933,-500.0,0.00012057,2]
[355434858,1741149047943,-1875.3,0.00012057,2]
[355434859,1741149047952,-1980.21,0.00012057,2]
[355434860,1741149047962,-977.78,0.00012057,2]
[355434861,1741149047971,-500.0,0.00012057,2]
[355434862,1741149047981,-500.0,0.00012057,2]
[355434863,1741149047991,-500.0,0.00012057,2]
[355434864,1741149048002,-1702.85,0.00012057,2]
[355434865,1741149048011,-1121.02,0.00012057,2]
[355434866,1741149048021,-500.0,0.00012057,2]
[355434867,1741149048030,-1260.13,0.00012057,2]
[355434868,1741149048040,-500.0,0.00012057,2]
[355434869,1741149048049,-500.0,0.00012057,2]
[355434870,1741149048059,-500.0,0.00012057,2]
[355434871,1741149048069,-500.0,0.00012057,2]
[355434872,1741149048078,-1653.15,0.00012057,2]
[355434873,1741149048087,-2306.14,0.00012057,2]
[355434874,1741149048097,-500.0,0.00012057,2]
[355434875,1741149048107,-2928.37,0.00012057,2]
[355434876,1741149048116,-2391.48,0.00012057,2]
[355434877,1741149048127,-1446.91,0.00012057,2]
[355434878,1741149048136,-2706.99,0.00012057,2]
[355434879,1741149048146,-500.0,0.00012057,2]
[355434880,1741149048156,-1634.24,0.00012057,2]
[355434881,1741149048165,-500.0,0.00012057,2]
[355434882,1741149048175,-1682.6,0.00012057,2]
[355434883,1741149048184,-500.0,0.00012057,2]
[355434884,1741149048194,-500.0,0.00012057,2]
[355434885,1741149048204,-1179.4,0.00012057,2]
[355434886,1741149048213,-1665.56,0.00012057,2]
[355434887,1741149048223,-1163.75,0.00012057,2]
[355434888,1741149048232,-1677.45,0.00012057,2]
[355434889,1741149048242,-1317.87,0.00012057,2]
[355434890,1741149048253,-500.0,0.00012057,2]
[355434891,1741149048262,-935.01,0.00012057,2]
[355434892,1741149048272,-500.0,0.00012057,2]
[355434893,1741149048281,-1526.86,0.00012057,2]
[355434894,1741149048291,-549.95,0.00012057,2]
[355434895,1741149048300,-1132.33,0.00012057,2]
[355434896,1741149048310,-500.0,0.00012057,2]
[355434897,1741149048320,-2179.77,0.00012057,2]
[355434898,1741149048331,-500.0,0.00012057,2]
[355434899,1741149048346,-500.0,0.00012057,2]
[355434900,1741149048355,-500.0,0.00012057,2]
[355434901,1741149048365,-2390.24,0.00012057,2]
[355434902,1741149048375,-1883.25,0.00012057,2]
[355434903,1741149048385,-2029.31,0.00012057,2]
[355434904,1741149048395,-5458.15,0.00012057,2]
[355434905,1741149048405,-1032.53,0.00012057,2]
[355434906,1741149048417,-579.27,0.00012057,2]
[355434907,1741149048429,-1823.12,0.00012057,2]
[355434908,1741149048438,-1702.54,0.00012057,2]
[355434909,1741149048448,-4587.52,0.00012057,2]
[355434910,1741149048458,-998.55,0.00012057,2]
[355434911,1741149048468,-9013.01,0.00012057,2]
[355434912,1741149048477,-984.31,0.00012057,2]
[355434913,1741149048486,-1703.52,0.00012057,2]
[355434914,1741149048495,-500.0,0.00012057,2]